Cogmind - Beta 14 @@@ ROGUE MODE // 2024.08.11 @ 17:53:46 Player: Steve French Result: Destroyed by Y-45 Defender with Beam Rifle Performance ------------- Evolutions (0) 0 Regions Visited (2) 400 Robots Destroyed (12) 60 Value Destroyed (274) 274 Prototype IDs (0) 0 Alien Tech Used (0) 0 Bonus (0) 0 TOTAL SCORE: 734 Bonus ------- None Cogmind --------- Core Integrity 0/250 Matter 300/300 Energy 160/160 System Corruption 0% Temperature Cool (9) Movement Core (500) Ox9 Location -10/Subcaves Parts ------- > --- POWER (1) -------- Light Nuclear Core > --- PROPULSION (2) --- Aluminum Leg > --- UTILITY (2) ------ Large Storage Unit Weapon Shielding > --- WEAPON (2) ------- EM Pulse Gun Mining Claw > --- INVENTORY (15) --- Ion Engine Aluminum Leg Aluminum Leg Large Matter Pod (150) Seismic Detector Peak State ------------ > --- POWER ------------ Light Nuclear Core > --- PROPULSION ------- Aluminum Leg Aluminum Leg > --- UTILITY ---------- Large Storage Unit Visual Processing Unit > --- WEAPON ----------- Light Assault Rifle Mining Claw > --- INVENTORY -------- Ion Engine Aluminum Leg Aluminum Leg Large Matter Pod Seismic Detector [Rating: 10] Favorites ----------- Power Light Nuclear Core Engine Light Ion Engine Power Core Light Nuclear Core Propulsion Aluminum Leg Treads Light Treads Leg Aluminum Leg Hover Unit Hover Unit Utility Large Storage Unit Device Sensor Array Storage Large Storage Unit Processor Visual Processing Unit Protection Weapon Shielding Weapon Mining Claw Energy Gun EM Pulse Gun Ballistic Gun Light Assault Rifle Slashing Weapon Mining Claw Build | -11 -10 -10 ------- Run | Yrd Mat Sub Slots Evolved . | . . . Power . | . . . Propulsion . | . . . Utility . | . . . Weapon . | . . . Parts Attached 21 | 5 16 . Power 4 | 2 2 . Engine 2 | 2 . . Core 2 | . 2 . Reactor . | . . . Propulsion 6 | 3 3 . Treads 2 | 2 . . Leg 3 | 1 2 . Wheel . | . . . Hover 1 | . 1 . Flight . | . . . Utility 6 | . 6 . Device 1 | . 1 . Storage 3 | . 3 . Processor 1 | . 1 . Hackware . | . . . Protection 1 | . 1 . Artifact . | . . . Weapon 5 | . 5 . Energy Gun 2 | . 2 . Energy Cannon . | . . . Ballistic Gun 2 | . 2 . Ballistic Cannon . | . . . Launcher . | . . . Special Weapon . | . . . Impact Weapon . | . . . Slashing Weapon 1 | . 1 . Piercing Weapon . | . . . Special Melee Weapon . | . . . Unidentified Prototypes . | . . . Parts Lost 6 | . 5 1 Power 1 | . 1 . Propulsion 3 | . 2 1 Utility . | . . . Weapon 2 | . 2 . Highest Loss Streak 3 | . 3 1 To Critical Strikes . | . . . Average Slot Usage (%) 88 | . 86 99 Core 12 | . 11 14 Treads 2 | . 2 . Leg 18 | . 19 14 Hover 6 | . 4 13 Device 2 | . 2 . Storage 14 | . 14 14 Processor 2 | . 2 . Protection 4 | . 2 14 Energy Gun 4 | . 3 14 Ballistic Gun 6 | . 8 . Slashing Weapon 12 | . 11 14 Peak Build Rating 10 | 3 10 9 Average Rating 7 | 2 8 8 On Entrance 4 | . 3 9 Naked Turns 7 | . 7 . Heaviest Build 31 | 5 31 30 Greatest Support 40 | 40 40 6 Greatest Overweight (x) 9 | 1 4 9 Average Overweight (x) 1 | . 1 4 Largest Inventory Capacity 15 | 5 15 15 Average Capacity 11 | 5 11 15 Most Carried 7 | 5 7 5 Average Carried 4 | 3 4 5 Final Capacity 15 | 5 15 15 Final Carried 5 | 4 5 5 Class Distribution -------------------- 85% | Mutant 14% | Scavenger-Mutant Dominant Class ---------------- Mutant | -10/Materials Mutant | -10/Subcaves Resources | -11 -10 -10 ----------- Run | Yrd Mat Sub Matter Collected 617 | 250 367 . Remotely . | . . . Salvage Created 374 | . 354 20 Parts 21 | . 21 . Haulers Intercepted . | . . . Recyclers Shooed . | . . . Parts Field Recycled . | . . . Retrieved Matter . | . . . Parts Self-Destructed . | . . . Prevented . | . . . Kills | -11 -10 -10 ------- Run | Yrd Mat Sub Combat Hostiles Destroyed 9 | . 8 1 Melee 1 | . 1 . Guns 8 | . 7 1 Classes Destroyed 4 | . 4 . Recycler 1 | . 1 . Watcher 2 | . 2 . Swarmer 4 | . 3 1 Grunt 5 | . 5 . Best Kill Streak 5 | . 5 1 Combat Bots Only 2 | . 2 1 Max Kills in Single Turn 1 | . 1 1 Gunslinging . | . . . Exploded . | . . . Melee 1 | . 1 . Uniques/NPCs Destroyed . | . . . Combat | -11 -10 -10 -------- Run | Yrd Mat Sub Hostile Shots Fired 128 | . 112 16 Missed 37 | . 34 3 Damage Taken 1101 | . 934 167 Core 256 | . 219 37 Absorbed by Shields . | . . . Redirected to Shielding 6 | . . 6 Regen/Repaired (Parts) 44 | . 44 . Core Remaining (%) 100 | 100 . . Volleys Fired 83 | . 69 14 Largest 2 | . 2 1 Hottest 70 | . 70 40 Shots Fired 98 | . 84 14 Gun 98 | . 84 14 Cannon . | . . . Launcher . | . . . Special . | . . . Kinetic 63 | . 63 . Thermal 15 | . 15 . Explosive . | . . . Electromagnetic 20 | . 6 14 Robot Hit Streak 7 | . 7 2 Robot Miss Streak 8 | . 8 1 Penetration Max . | . . . Secondary Targets . | . . . Shots Hit Robots 42 | . 40 2 Core Hits 25 | . 23 2 Critical Kills . | . . . Critical Parts Destroyed . | . . . Critical Strikes 1 | . 1 . Burn 1 | . 1 . Melee Attacks 1 | . 1 . Impact . | . . . Slashing 1 | . 1 . Piercing . | . . . Sneak Attacks . | . . . Combat Hostiles . | . . . Follow-up Attacks . | . . . Damage Inflicted 469 | . 449 20 Guns 452 | . 432 20 Cannons . | . . . Explosions . | . . . Melee . | . . . Ramming 17 | . 17 . Kinetic 288 | . 288 . Thermal 114 | . 114 . Explosive . | . . . Electromagnetic 50 | . 30 20 Impact . | . . . Slashing . | . . . Piercing . | . . . Highest Corruption . | . . . Average Corruption . | . . . Corruption Purged . | . . . Corruption Blocked . | . . . Overload Shots . | . . . Overflow Damage . | . . . Projectiles . | . . . Explosions . | . . . Melee . | . . . Knockbacks . | . . . Impact . | . . . Kinetic . | . . . Secondary . | . . . Self-Inflicted Damage 3 | . 3 . Shots . | . . . Rammed 16 | . 16 . Targets Rammed 17 | . 17 . Kicked . | . . . Crushed 1 | . 1 . Highest Temperature 326 | . 326 . Average Temperature 85 | . 85 . Received Heat Transfer 525 | . 462 63 Effects 1 | . 1 . Short Circuit 1 | . 1 . Siege Activations . | . . . Robots Corrupted . | . . . Combat Hostiles . | . . . Parts Fried . | . . . Impact Corruptions . | . . . Robots Melted . | . . . Combat Hostiles . | . . . Parts Melted 1 | . 1 . Heat Transferred 407 | . 407 . Parts Sabotaged . | . . . Parts Stolen . | . . . Parts Stripped . | . . . Power Chain Reactions . | . . . Alert | -11 -10 -10 ------- Run | Yrd Mat Sub Peak Influence 147 | . 147 . Initial . | . . . Average 36 | . 39 . Maximum Alert Level . | . . . Low Security (%) 100 | 100 100 . Level 1 . | . . . Level 2 . | . . . Level 3 . | . . . Level 4 . | . . . Level 5 . | . . . High Security . | . . . Max Security . | . . . Squads Dispatched 1 | . 1 . Investigation 1 | . 1 . Extermination . | . . . Reinforcement . | . . . Assault . | . . . Garrison . | . . . Intercept . | . . . Searches Triggered . | . . . Construction Impeded . | . . . Haulers Reinforced . | . . . Active Scanning Responses . | . . . Cargo Convoy Interrupts . | . . . Stealth | -11 -10 -10 --------- Run | Yrd Mat Sub Distress Signals 3 | . 3 . Communications Jammed . | . . . Distress Signals . | . . . Times Spotted 21 | . 19 2 Peak Tracking Total 6 | . 6 2 Tactical Retreats . | . . . Traps | -11 -10 -10 ------- Run | Yrd Mat Sub Traps Triggered . | . . . Indirectly . | . . . Trap Hack Attempts . | . . . Triggered . | . . . Disarmed . | . . . Reprogrammed . | . . . Reused . | . . . Traps Extracted . | . . . Installed . | . . . Triggered . | . . . Machines | -11 -10 -10 ---------- Run | Yrd Mat Sub Machines Disabled . | . . . Max in Single Turn . | . . . Machines Repaired . | . . . Machines Dismantled . | . . . Machines Sabotaged . | . . . Overloaded Fab Kills . | . . . Hacking | -11 -10 -10 --------- Run | Yrd Mat Sub Machines Accessed 4 | . 4 . Terminals 1 | . 1 . Fabricators . | . . . Repair Stations 1 | . 1 . Recycling Units 2 | . 2 . Scanalyzers . | . . . Garrison Access . | . . . Total Hacks 20 | . 20 . Successful 14 | . 14 . Failed 6 | . 6 . Catastrophic . | . . . Database Lockouts . | . . . Manual . | . . . Terminals 6 | . 6 . Fabricators . | . . . Repair Stations 5 | . 5 . Recycling Units 9 | . 9 . Scanalyzers . | . . . Garrison Access . | . . . Terminal Hacks 4 | . 4 . Emergency Access Points 1 | . 1 . Dispatch Records 1 | . 1 . Maintenance Status 1 | . 1 . Hauler Manifests 1 | . 1 . Fabricator Hacks . | . . . Repair Station Hacks 5 | . 5 . Scan Component 4 | . 4 . Repair 1 | . 1 . Recycling Unit Hacks 5 | . 5 . Process 1 | . 1 . Report Inventory 2 | . 2 . Retrieve Matter 1 | . 1 . Retrieve Components 1 | . 1 . Scanalyzer . | . . . Garrison Access Hacks . | . . . Unauthorized Hacks . | . . . Terminals . | . . . Fabricators . | . . . Repair Stations . | . . . Recycling Units . | . . . Scanalyzers . | . . . Garrison Access . | . . . Data Cores Recovered . | . . . Used . | . . . Hacking Detections 3 | . 3 . Full Trace Events 2 | . 2 . Feedback Events . | . . . Feedback Blocked . | . . . Robot Schematics Acquired . | . . . Robots Built . | . . . Authchips . | . . . Time . | . . . Total Robot Build Rating . | . . . Part Schematics Acquired . | . . . Parts Built . | . . . Authchips . | . . . Time . | . . . Total Part Build Rating . | . . . Parts Repaired 1 | . 1 . Time 38 | . 38 . Parts Recycled . | . . . Recycled Matter . | . . . Retrieved Matter . | . . . Retrieved Components . | . . . Parts Scanalyzed . | . . . Part Schematics Acquired . | . . . Parts Damaged . | . . . Bothacking | -11 -10 -10 ------------ Run | Yrd Mat Sub Used RIF Installer . | . . . Robots Hacked . | . . . Non-combat . | . . . Combat . | . . . Robot Hacks Applied . | . . . Relay Couplers Released . | . . . Fabnet Peak Effective % . | . . . Robots Rewired . | . . . Allies Hacked . | . . . Hacks Repelled . | . . . Allies | -11 -10 -10 -------- Run | Yrd Mat Sub Total Allies . | . . . Largest Group . | . . . Highest-Rated Group . | . . . Highest-Rated Ally . | . . . Total Orders . | . . . Ally Attacks . | . . . Total Damage . | . . . Kills . | . . . Allies Corrupted . | . . . Allies Melted . | . . . Intel | -11 -10 -10 ------- Run | Yrd Mat Sub Robot Analysis Total . | . . . Derelict Logs Recovered . | . . . Drone Launches . | . . . Drone Recoveries . | . . . Exploration | -11 -10 -10 ------------- Run | Yrd Mat Sub Turns Passed 1606 | 97 1268 241 Spaces Moved 729 | 79 582 68 Core 59 | 42 16 1 Treads 68 | 33 35 . Legs 398 | 4 394 . Wheels . | . . . Hover 204 | . 137 67 Flight . | . . . Fastest Speed 50 | 50 50 310 Average Speed 186 | 107 183 312 Slowest Speed 500 | 160 310 500 Overloaded Moves . | . . . Propulsion Burnouts . | . . . Robots Hopped . | . . . Cave-ins Triggered . | . . . Exploration Rate (%) 25 | 4 67 6 Regions Visited 2 Branch Regions 1 Pre-discovered Areas . | . . . Known Exits Taken . | . . . Unknown Exits Taken 2 | 1 1 . Scrap Searched . | . . . Spaces Dug . | . . . Terrain Destroyed . | . . . Melee . | . . . Projectile . | . . . AOE . | . . . Terrain Rammed . | . . . Walls Destroyed . | . . . Machines Disabled . | . . . Actions | -11 -10 -10 --------- Run | Yrd Mat Sub Total 880 | 91 706 83 Wait 1 | . . 1 Move 727 | 78 581 68 Hop . | . . . Pick Up 23 | 7 16 . Fast Attach 1 | 1 . . Attach 18 | 3 15 . Detach 1 | . 1 . Swap 2 | 1 1 . Drop 6 | 1 5 . Fire 83 | . 69 14 Melee 1 | . 1 . Ram 1 | . 1 . Kick . | . . . Crush 16 | . 16 . Escape Stasis . | . . . Rewire . | . . . Trap . | . . . Miscellaneous . | . . . Route ------- -11/Scrapyard -10/Materials (discovered 5 exits: [*Mat x2] / [*Min x2] / [*Sub]) -10/Subcaves (discovered 1 exit: [*Mat]) History --------- Turn | Location | Event 3 | -11/Scrapyard | Discovered new exit (range 14) 98 | -11/Scrapyard | Entered Materials 206 | -10/Materials | Core integrity fell below 50% 260 | -10/Materials | Lost 3 parts (2n1w) 326 | -10/Materials | Discovered new exit (range 10) 328 | -10/Materials | Build established: Mutant 422 | -10/Materials | Discovered new exit (range 16) 464 | -10/Materials | Discovered new exit (range 12) 611 | -10/Materials | Discovered new exit (range 3) 891 | -10/Materials | Core integrity fell below 20% 1086 | -10/Materials | Discovered new exit (range 8) 1243 | -10/Materials | Repaired Lgt. Nuclear Core 1366 | -10/Materials | Entered Subcaves 1497 | -10/Subcaves | A swath of the cavern ceiling suddenly collapsed 1569 | -10/Subcaves | Discovered new exit (range 6) 1607 | -10/Subcaves | Destroyed by Y-45 Defender with Beam Rifle Last Messages --------------- 01314_ R-06 Scavenger collects Corrupted Imp. Heat Sink. 01318_ R-06 Scavenger collects Lgt. Nuclear Core. 01326_ Acquired 30 matter. LOCATION=UNKNOWN AMBIENT_HEAT=-10 GOAL=ESCAPE 01497_ 6 Matter crushed. 01497_ 10 Matter crushed. 01497_ 7 Matter crushed. 01497_ 12 Matter crushed. A swath of the cavern ceiling suddenly collapses. 01569_ EXIT=FOUND 01595_ Hover Unit destroyed. 01599_ Subatomizers dissect the Ion Engine, destroying it. 01599_ S-10 Pest destroyed. 01604_ Critical hit (Burn: +37). Map ----- +----------------------------------------------------+ | ?????????????????????????????????????????????????? | | ?????????????????????????????????????????????????? | | ?????????????????????????????????????????????????? | | ?????????????????????????????????????????????????? | | ?????????????????????????????????????????????????? | | ?????????????????????????????????????????????????? | | ?????????????????????????????????????????????????? | | ?????????????????????????????????????????????????? | | ????????????######???????????????????????????????? | | ###????????## % ##??????##??????????????????????? | | ##???????# #######"# #????????????????????? | | ###????## """""# #????????????????????? | | ## ###### %###"#"# #?????????????????????? | | ## # %""""""#%#?????????????????????? | | ?# # # #"" "## ???????????????????? | | ?# #### ## %"### #### ?###????????????????? | | ?## #?# # ####;#""###""#????????????????? | | ??## ###?#;#"#"#"""#????????????????? | | ????# #???# "#""""#??????????????????? | | ????## ## ??#;####"##??????????????????? | | ?????## ##### ##?## ?##"##??????????????????? | | ??????#####???######???# ?#"#"#??????????????????? | | ???????????????????????? ?#;###??????????????????? | | ???????????????????????# ##<;;##?????????????????? | | ?????????????????????####; % %#?????????????????? | | ?????????????????????# @ ##?????????????????? | | ?????????????????????#% ####??????????????????? | | ?????????????????????# Y #????????????????????? | | ?????????????????????# #????????????????????? | | ?????????????????????# ##????????????????????? | | ?????????????????????### #?????????????????????? | | ???????????????????????# % ?????????????????????? | | ???????????????????????##&%#?????????????????????? | | ???????????????????????? #?????????????????????? | | ???????????????????????? ?????????????????????? | | ???????????????????????? ?????????????????????? | | ???????????????????????? ?????????????????????? | | ??????????????????????? ?????????????????????? | | ???????????????????????? ?????????????????????? | | ???????????????????????? ?????????????????????? | | ???????????????????????? ?????????????????????? | | ?????????????????????????????????????????????????? | | ?????????????????????????????????????????????????? | | ?????????????????????????????????????????????????? | | ?????????????????????????????????????????????????? | | ?????????????????????????????????????????????????? | | ?????????????????????????????????????????????????? | | ?????????????????????????????????????????????????? | | ?????????????????????????????????????????????????? | | ?????????????????????????????????????????????????? | +----------------------------------------------------+ Best States ------------- Heat Dissipation 25 Energy Generation 14 Energy Capacity 250 Matter Stores 300 Matter Capacity 450 Sight Range 18 Robot Scan Range 14 Terrain Scan Density 10 Weapon Shielding 33 Evasion (%) 55 Recoil Reduction 2 Item Schematics ----------------- None Robot Schematics ------------------ None Fabricated ------------ Nothing Alien Tech Used ----------------- None Achievements -------------- Fist Fight Challenges ------------ None Game ------ Seed CoreAutogunCharger Manual? 0 Play Time 00:16:53 Cumulative 1.6 hours Start 2024.08.11 @ 17:37:25 End 2024.08.11 @ 17:53:46 Sessions 1 Manual Loads 0 Difficulty Rogue Special Mode None Game No. 7 Rogue 7 Adventurer 0 Explorer 0 Win Type - Total 0 Types 0/0/0/0/0/0/0/0/0 Lore% 0 Gallery% 4 Achievement% 5 Wizard Run 0 Options --------- Layout 1 ASCII 0 Keyboard 0 Movement Mouse Keybinds 0 Fullscreen 1 Font 24/Smallcaps Map View 50x35 Zoom Use 0% Tactical HUD 1 Map Filters NONE Filters NONE Steam 1 RUN: d6c20bc8-6bc3-4afe-8121-91712cf85bf3